lending/lending_fUSD_20250719
["ID","MTS","AMOUNT","RATE_DAILY","PERIOD"]
[373328398,1752947468933,-480.0,0.00019616,2]
[373328399,1752947468947,-480.0,0.00019616,2]
[373328400,1752947468958,-480.0,0.00019616,2]
[373328401,1752947468967,-480.0,0.00019616,2]
[373328402,1752947468978,-511.8,0.00019616,2]
[373328403,1752947468988,-548.72,0.00019616,2]
[373328404,1752947468999,-480.0,0.00019616,2]
[373328405,1752947469009,-480.0,0.00019616,2]
[373328406,1752947469020,-480.0,0.00019616,2]
[373328407,1752947469030,-732.98,0.00019616,2]
[373328408,1752947469039,-480.0,0.00019616,2]
[373328409,1752947469049,-480.0,0.00019616,2]
[373328410,1752947469059,-480.0,0.00019616,2]
[373328411,1752947469069,-300.0,0.00019616,2]
[373328412,1752947469078,-705.62,0.00019616,2]
[373328413,1752947469089,-480.0,0.00019616,2]
[373328414,1752947469099,-480.0,0.00019616,2]
[373328415,1752947469111,-465.52,0.00019616,2]
[373328416,1752947469120,-480.0,0.00019616,2]
[373328417,1752947469131,-480.0,0.00019616,2]
[373328418,1752947469140,-480.0,0.00019616,2]
[373328419,1752947469149,-531.98,0.00019616,2]
[373328420,1752947469159,-480.0,0.00019616,2]
[373328421,1752947469168,-480.0,0.00019616,2]
[373328422,1752947469178,-480.0,0.00019616,2]
[373328423,1752947469187,-480.0,0.00019616,2]
[373328424,1752947469197,-480.0,0.00019616,2]
[373328425,1752947469206,-480.0,0.00019616,2]
[373328426,1752947469215,-480.0,0.00019616,2]
[373328427,1752947469225,-480.0,0.00019616,2]
[373328428,1752947469234,-480.0,0.00019616,2]
[373328429,1752947469244,-480.0,0.00019616,2]
[373328430,1752947469253,-371.19148026,0.00019616,2]
[373328431,1752947469262,-646.05,0.00019616,2]
[373328432,1752947469272,-480.0,0.00019616,2]
[373328433,1752947469281,-480.0,0.00019616,2]
[373328434,1752947469291,-480.0,0.00019616,2]
[373328435,1752947469302,-480.0,0.00019616,2]
[373328436,1752947469311,-480.0,0.00019616,2]
[373328437,1752947469320,-428.94,0.00019616,2]
[373328438,1752947469329,-1135.62,0.00019616,2]
[373328439,1752947469339,-480.0,0.00019616,2]
[373328440,1752947469348,-549.07,0.00019616,2]
[373328441,1752947469358,-513.46,0.00019616,2]
[373328442,1752947469368,-480.0,0.00019616,2]
[373328443,1752947469377,-480.0,0.00019616,2]
[373328444,1752947469387,-256.04,0.00019616,2]
[373328445,1752947469397,-347.05,0.00019616,2]
[373328446,1752947469407,-480.0,0.00019616,2]
[373328447,1752947469418,-480.0,0.00019616,2]
[373328448,1752947469429,-480.0,0.00019616,2]
[373328449,1752947469439,-480.0,0.00019616,2]
[373328450,1752947469449,-480.0,0.00019616,2]
[373328451,1752947469459,-480.0,0.00019616,2]
[373328452,1752947469468,-299.92,0.00019616,2]
[373328453,1752947469478,-480.0,0.00019616,2]
[373328454,1752947469487,-480.0,0.00019616,2]
[373328455,1752947469498,-480.0,0.00019616,2]
[373328456,1752947469508,-480.0,0.00019616,2]
[373328457,1752947469517,-480.0,0.00019616,2]
[373328458,1752947469527,-480.0,0.00019616,2]
[373328459,1752947469536,-480.0,0.00019616,2]
[373328460,1752947469547,-574.0,0.00019616,2]
[373328461,1752947469556,-480.0,0.00019616,2]
[373328462,1752947469566,-480.0,0.00019616,2]
[373328463,1752947469575,-512.86,0.00019616,2]
[373328464,1752947469586,-480.0,0.00019616,2]
[373328465,1752947469597,-480.0,0.00019616,2]
[373328466,1752947469607,-480.0,0.00019616,2]
[373328467,1752947469617,-480.0,0.00019616,2]
[373328468,1752947469627,-318.69,0.00019616,2]
[373328469,1752947469696,-480.0,0.00019616,2]
[373328470,1752947469707,-299.04,0.00019616,2]
[373328471,1752947469716,-480.0,0.00019616,2]
[373328472,1752947469728,-480.0,0.00019616,2]
[373328473,1752947469738,-320.0,0.00019616,2]
[373328474,1752947469748,-480.0,0.00019616,2]
[373328475,1752947469758,-480.0,0.00019616,2]
[373328476,1752947469767,-480.0,0.00019616,2]
[373328477,1752947469776,-480.0,0.00019616,2]
[373328478,1752947469786,-480.0,0.00019616,2]
[373328479,1752947469795,-480.0,0.00019616,2]
[373328480,1752947469804,-480.0,0.00019616,2]
[373328481,1752947469814,-480.0,0.00019616,2]
[373328482,1752947469823,-447.99,0.00019616,2]
[373328483,1752947469832,-684.65,0.00019616,2]
[373328484,1752947469841,-480.0,0.00019616,2]
[373328485,1752947469851,-480.0,0.00019616,2]
[373328486,1752947469860,-473.33748613,0.00019616,2]
[373328487,1752947469869,-845.48,0.00019616,2]
[373328488,1752947469879,-480.0,0.00019616,2]
[373328489,1752947469889,-480.0,0.00019616,2]
[373328490,1752947469899,-480.0,0.00019616,2]
[373328491,1752947469908,-480.0,0.00019616,2]
[373328492,1752947469917,-487.4,0.00019616,2]
[373328493,1752947469926,-480.0,0.00019616,2]
[373328494,1752947469935,-300.73,0.00019616,2]
[373328495,1752947469948,-480.0,0.00019616,2]
[373328496,1752947469959,-737.96,0.00019616,2]
[373328497,1752947469968,-480.0,0.00019616,2]
[373328498,1752947469977,-480.0,0.00019616,2]
[373328499,1752947469989,-480.0,0.00019616,2]
[373328500,1752947470001,-480.0,0.00019616,2]
[373328501,1752947470010,-480.0,0.00019616,2]
[373328502,1752947470019,-480.0,0.00019616,2]
[373328503,1752947470029,-480.0,0.00019616,2]
[373328504,1752947470038,-493.38,0.00019616,2]
[373328505,1752947470047,-420.0,0.00019616,2]
[373328506,1752947470056,-186.44975469,0.00019616,2]
[373328507,1752947470066,-480.0,0.00019616,2]
[373328508,1752947470075,-480.0,0.00019616,2]
[373328509,1752947470084,-480.0,0.00019616,2]
[373328510,1752947470093,-480.0,0.00019616,2]
[373328511,1752947470102,-1027.52,0.00019616,2]
[373328512,1752947470113,-167.88,0.00019616,2]
[373328513,1752947470122,-480.0,0.00019616,2]
[373328514,1752947470131,-480.0,0.00019616,2]
[373328515,1752947470141,-1665.8,0.00019616,2]
[373328516,1752947470151,-684.14,0.00019616,2]
[373328517,1752947470160,-480.0,0.00019616,2]
[373328518,1752947470171,-320.0,0.00019616,2]
[373328519,1752947470181,-480.0,0.00019616,2]
[373328520,1752947470190,-480.0,0.00019616,2]
[373328521,1752947470202,-480.0,0.00019616,2]
[373328522,1752947470212,-866.32,0.00019616,2]
[373328523,1752947470221,-1613.96,0.00019616,2]
[373328524,1752947470230,-333.93,0.00019616,2]
[373328525,1752947470239,-579.97,0.00019616,2]
[373328526,1752947470251,-503.46,0.00019616,2]
[373328527,1752947470260,-480.0,0.00019616,2]
[373328528,1752947470270,-351.05,0.00019616,2]
[373328529,1752947470279,-653.05,0.00019616,2]
[373328530,1752947470289,-1511.88,0.00019616,2]
[373328531,1752947470300,-1760.29,0.00019616,2]
[373328532,1752947470310,-480.0,0.00019616,2]
[373328533,1752947470320,-649.53,0.00019616,2]
[373328534,1752947470331,-480.0,0.00019616,2]
[373328535,1752947470341,-480.0,0.00019616,2]
[373328536,1752947470351,-548.64,0.00019616,2]
[373328537,1752947470361,-784.63,0.00019616,2]
[373328538,1752947470369,-769.17,0.00019616,2]
[373328539,1752947470379,-480.0,0.00019616,2]
[373328540,1752947470390,-480.0,0.00019616,2]
[373328541,1752947470399,-624.03,0.00019616,2]
[373328542,1752947470408,-480.0,0.00019616,2]
[373328543,1752947470417,-566.36,0.00019616,2]
[373328544,1752947470427,-480.0,0.00019616,2]
[373328545,1752947470435,-480.0,0.00019616,2]
[373328546,1752947470445,-299.74,0.00019616,2]
[373328547,1752947470454,-565.68,0.00019616,2]
[373328548,1752947470463,-1541.23,0.00019616,2]
[373328549,1752947470472,-480.0,0.00019616,2]
[373328550,1752947470482,-1966.63,0.00019616,2]
[373328551,1752947470491,-1061.566029,0.00019616,2]
[373328552,1752947470503,-1071.078396,0.00019616,2]
[373328553,1752947470512,-1544.9,0.00019616,2]
[373328554,1752947470522,-480.0,0.00019616,2]
[373328555,1752947470532,-1964.37,0.00019616,2]
[373328556,1752947470541,-185.5,0.00019616,2]
[373328557,1752947470551,-827.24,0.00019616,2]
[373328558,1752947470560,-4021.3,0.00019616,2]
[373328559,1752947470570,-977.88,0.00019616,2]
[373328560,1752947470580,-517.42,0.00019616,2]
[373328561,1752947470589,-480.0,0.00019616,2]
[373328562,1752947470598,-480.0,0.00019616,2]
[373328563,1752947470607,-752.96,0.00019616,2]
[373328564,1752947470616,-480.0,0.00019616,2]
[373328565,1752947470625,-830.46,0.00019616,2]
[373328566,1752947470634,-499.4,0.00019616,2]
[373328567,1752947470643,-839.21,0.00019616,2]
[373328568,1752947470652,-881.13,0.00019616,2]
[373328569,1752947470662,-480.0,0.00019616,2]
[373328570,1752947470671,-507.57,0.00019616,2]
[373328571,1752947470680,-151.0,0.00019616,2]
[373328572,1752947470690,-480.0,0.00019616,2]
[373328573,1752947470699,-275.565567,0.00019616,2]
[373328574,1752947470709,-1377.35,0.00019616,2]
[373328575,1752947470718,-799.51,0.00019616,2]
[373328576,1752947470727,-2449.77,0.00019616,2]
[373328577,1752947470736,-771.35,0.00019616,2]
[373328578,1752947470747,-480.0,0.00019616,2]
[373328579,1752947470756,-480.0,0.00019616,2]
[373328580,1752947470765,-275.565567,0.00019616,2]
[373328581,1752947470774,-260.61,0.00019616,2]
[373328582,1752947470783,-480.0,0.00019616,2]
[373328583,1752947470793,-556.56,0.00019616,2]
[373328584,1752947470802,-480.0,0.00019616,2]
[373328585,1752947470812,-2751.77,0.00019616,2]
[373328586,1752947470821,-499.43,0.00019616,2]
[373328587,1752947470830,-3635.27,0.00019616,2]
[373328588,1752947470840,-712.0,0.00019616,2]
[373328589,1752947470850,-480.0,0.00019616,2]
[373328590,1752947470859,-707.84,0.00019616,2]
[373328591,1752947470870,-555.4,0.00019616,2]
[373328592,1752947470880,-657.33,0.00019616,2]
[373328593,1752947470890,-626.32,0.00019616,2]
[373328594,1752947470899,-530.66,0.00019616,2]
[373328595,1752947470909,-166.913198,0.00019616,2]
[373328596,1752947470919,-659.38,0.00019616,2]
[373328597,1752947470929,-891.68,0.00019616,2]
[373328598,1752947470939,-1132.469178,0.00019616,2]
[373328599,1752947470950,-480.0,0.00019616,2]
[373328600,1752947470960,-543.25004529,0.00019616,2]
[373328601,1752947470970,-480.0,0.00019616,2]
[373328602,1752947470980,-651.47,0.00019616,2]
[373328603,1752947470989,-664.87,0.00019616,2]
[373328604,1752947470999,-480.0,0.00019616,2]
[373328605,1752947471009,-1573.49,0.00019616,2]
[373328606,1752947471019,-1091.37,0.00019616,2]
[373328607,1752947471029,-1090.26,0.00019616,2]
[373328608,1752947471038,-3159.4,0.00019616,2]
[373328609,1752947471049,-704.05,0.00019616,2]
[373328610,1752947471060,-713.41,0.00019616,2]
[373328611,1752947471070,-480.0,0.00019616,2]
[373328612,1752947471079,-566.08,0.00019616,2]
[373328613,1752947471088,-480.0,0.00019616,2]
[373328614,1752947471097,-480.0,0.00019616,2]
[373328615,1752947471106,-656.68,0.00019616,2]
[373328616,1752947471117,-620.64,0.00019616,2]
[373328617,1752947471126,-2150.51,0.00019616,2]
[373328618,1752947471135,-480.0,0.00019616,2]
[373328619,1752947471145,-480.0,0.00019616,2]
[373328620,1752947471156,-968.85,0.00019616,2]
[373328621,1752947471165,-1450.72,0.00019616,2]
[373328622,1752947471174,-320.0,0.00019616,2]
[373328623,1752947471183,-480.0,0.00019616,2]
[373328624,1752947471192,-480.0,0.00019616,2]
[373328625,1752947471201,-914.06,0.00019616,2]
[373328626,1752947471210,-480.0,0.00019616,2]
[373328627,1752947471219,-528.66,0.00019616,2]
[373328628,1752947471228,-1429.57,0.00019616,2]
[373328629,1752947471238,-1525.629002,0.00019616,2]
[373328630,1752947471250,-714.08,0.00019616,2]
[373328631,1752947471259,-738.22,0.00019616,2]
[373328632,1752947471269,-649.1,0.00019616,2]
[373328633,1752947471279,-480.0,0.00019616,2]
[373328634,1752947471289,-480.0,0.00019616,2]
[373328635,1752947471300,-1525.629002,0.00019616,2]
[373328636,1752947471309,-1323.57,0.00019616,2]
[373328637,1752947471319,-480.0,0.00019616,2]
[373328638,1752947471330,-480.0,0.00019616,2]
[373328639,1752947471339,-480.0,0.00019616,2]
[373328640,1752947471350,-1052.89,0.00019616,2]
[373328641,1752947471359,-611.25,0.00019616,2]
[373328642,1752947471368,-480.0,0.00019616,2]
[373328643,1752947471379,-480.0,0.00019616,2]
[373328644,1752947471388,-675.43,0.00019616,2]
[373328645,1752947471397,-480.0,0.00019616,2]
[373328646,1752947471407,-480.0,0.00019616,2]
[373328647,1752947471417,-480.0,0.00019616,2]
[373328648,1752947471427,-480.0,0.00019616,2]
[373328649,1752947471437,-493.0,0.00019616,2]
[373328650,1752947471446,-151.0,0.00019616,2]
[373328651,1752947471455,-1925.77,0.00019616,2]
[373328652,1752947471465,-480.0,0.00019616,2]
[373328653,1752947471474,-151.0,0.00019616,2]
[373328654,1752947471483,-480.0,0.00019616,2]
[373328655,1752947471492,-2367.09,0.00019616,2]
[373328656,1752947471503,-1097.63,0.00019616,2]
[373328657,1752947471512,-151.0,0.00019616,2]
[373328658,1752947471521,-480.0,0.00019616,2]
[373328659,1752947471531,-944.49,0.00019616,2]
[373328660,1752947471540,-151.0,0.00019616,2]
[373328661,1752947471549,-480.0,0.00019616,2]
[373328662,1752947471559,-480.0,0.00019616,2]
[373328663,1752947471568,-480.0,0.00019616,2]
[373328664,1752947471578,-480.0,0.00019616,2]
[373328665,1752947471587,-887.51,0.00019616,2]
[373328666,1752947471597,-1347.08,0.00019616,2]
[373328667,1752947471606,-480.0,0.00019616,2]
[373328668,1752947471616,-480.0,0.00019616,2]
[373328669,1752947471625,-480.0,0.00019616,2]
[373328670,1752947471635,-309.574514,0.00019616,2]
[373328671,1752947471644,-461.32821958,0.00019616,2]
[373328672,1752947471653,-480.0,0.00019616,2]
[373328673,1752947471663,-480.0,0.00019616,2]
[373328674,1752947471672,-309.574514,0.00019616,2]
[373328675,1752947471681,-1573.99,0.00019616,2]
[373328676,1752947471690,-1810.63,0.00019616,2]
[373328677,1752947471701,-686.5,0.00019616,2]
[373328678,1752947471710,-3417.91,0.00019616,2]
[373328679,1752947471719,-253.27251027,0.00019616,2]
[373328680,1752947471728,-1003.56,0.00019616,2]
[373328681,1752947471739,-877.98,0.00019616,2]
[373328682,1752947471750,-480.0,0.00019616,2]
[373328683,1752947471759,-480.0,0.00019616,2]
[373328684,1752947471768,-340.0,0.00019616,2]
[373328685,1752947471777,-625.41,0.00019616,2]
[373328686,1752947471787,-480.0,0.00019616,2]
[373328687,1752947471796,-697.26,0.00019616,2]
[373328688,1752947471805,-484.73,0.00019616,2]
[373328689,1752947471816,-18779.77,0.00019616,2]
[373328690,1752947471826,-156.94467151,0.00019616,2]
[373328691,1752947471835,-1128.18,0.00019616,2]
[373328692,1752947471845,-480.0,0.00019616,2]
[373328693,1752947471854,-480.0,0.00019616,2]
[373328694,1752947471864,-151.0,0.00019616,2]
[373328695,1752947471874,-480.0,0.00019616,2]
[373328696,1752947471883,-360.0,0.00019616,2]
[373328697,1752947471892,-694.15,0.00019616,2]
[373328698,1752947471903,-622.71,0.00019616,2]
[373328699,1752947471913,-340.0,0.00019616,2]
[373328700,1752947471923,-2992.01,0.00019616,2]
[373328701,1752947471934,-263.66,0.00019616,2]
[373328702,1752947471947,-480.0,0.00019616,2]
[373328703,1752947471957,-671.5,0.00019616,2]
[373328704,1752947471967,-360.0,0.00019616,2]
[373328705,1752947471977,-3330.84,0.00019616,2]
[373328706,1752947471987,-512.56,0.00019616,2]
[373328707,1752947471996,-480.0,0.00019616,2]
[373328708,1752947472006,-894.92,0.00019616,2]
[373328709,1752947472017,-480.0,0.00019616,2]
[373328710,1752947472027,-669.69,0.00019616,2]
[373328711,1752947472036,-480.0,0.00019616,2]
[373328712,1752947472045,-480.0,0.00019616,2]
[373328713,1752947472054,-151.0,0.00019616,2]
[373328714,1752947472063,-530.32,0.00019616,2]
[373328715,1752947472073,-565.91,0.00019616,2]
[373328716,1752947472083,-151.0,0.00019616,2]
[373328717,1752947472092,-480.0,0.00019616,2]
[373328718,1752947472101,-480.0,0.00019616,2]
[373328719,1752947472110,-483.19,0.00019616,2]
[373328720,1752947472120,-5190.67,0.00019616,2]
[373328721,1752947472129,-480.0,0.00019616,2]
[373328722,1752947472139,-360.0,0.00019616,2]
[373328723,1752947472149,-480.0,0.00019616,2]
[373328724,1752947472159,-480.0,0.00019616,2]
[373328725,1752947472168,-480.0,0.00019616,2]
[373328726,1752947472178,-480.0,0.00019616,2]
[373328727,1752947472188,-871.01,0.00019616,2]
[373328728,1752947472197,-670.84,0.00019616,2]
[373328729,1752947472207,-541.67,0.00019616,2]
[373328730,1752947472216,-582.58,0.00019616,2]
[373328731,1752947472225,-480.0,0.00019616,2]
[373328732,1752947472235,-480.0,0.00019616,2]
[373328733,1752947472246,-1471.9,0.00019616,2]
[373328734,1752947472256,-506.73,0.00019616,2]
[373328735,1752947472266,-1209.75,0.00019616,2]
[373328736,1752947472277,-480.0,0.00019616,2]
[373328737,1752947472292,-480.0,0.00019616,2]
[373328738,1752947472310,-480.0,0.00019616,2]
[373328739,1752947472319,-480.0,0.00019616,2]
[373328740,1752947472328,-480.0,0.00019616,2]
[373328741,1752947472338,-1136.8,0.00019616,2]
[373328742,1752947472347,-480.0,0.00019616,2]
[373328743,1752947472369,-686.18,0.00019616,2]
[373328744,1752947472379,-1787.28,0.00019616,2]
[373328745,1752947472389,-286.0,0.00019616,2]
[373328746,1752947472399,-480.0,0.00019616,2]
[373328747,1752947472409,-480.0,0.00019616,2]
[373328748,1752947472419,-613.3,0.00019616,2]
[373328749,1752947472429,-615.16,0.00019616,2]
[373328750,1752947472439,-480.0,0.00019616,2]
[373328751,1752947472449,-480.0,0.00019616,2]
[373328752,1752947472458,-480.0,0.00019616,2]
[373328753,1752947472468,-590.52,0.00019616,2]
[373328754,1752947472477,-480.0,0.00019616,2]
[373328755,1752947472486,-1035.78,0.00019616,2]
[373328756,1752947472495,-1251.49,0.00019616,2]
[373328757,1752947472505,-480.0,0.00019616,2]
[373328758,1752947472515,-559.07,0.00019616,2]
[373328759,1752947472525,-6709.99,0.00019616,2]
[373328760,1752947472535,-480.0,0.00019616,2]
[373328761,1752947472544,-151.0,0.00019616,2]
[373328762,1752947472554,-480.0,0.00019616,2]
[373328763,1752947472564,-576.67,0.00019616,2]
[373328764,1752947472574,-765.7,0.00019616,2]
[373328765,1752947472583,-1160.29,0.00019616,2]
[373328766,1752947472594,-480.0,0.00019616,2]
[373328767,1752947472604,-480.0,0.00019616,2]
[373328768,1752947472614,-1000.0,0.00019617,2]
[373328769,1752947472624,-153.2556658,0.00019636,2]
[373328770,1752947472634,-294.0,0.00019643,2]
[373328771,1752947472644,-9194.37,0.0001965,2]
[373328772,1752947472657,-161.46102776,0.00019705,2]
[373328773,1752947472667,-334.96150997,0.00019716,2]
[373328774,1752947472677,-500.0,0.00019721,2]
[373328775,1752947472687,-493.62,0.00019725,2]
[373328776,1752947472697,-1560.34,0.00019725,2]
[373328777,1752947472708,-500.0,0.00019726,2]
[373328778,1752947472719,-150.0,0.00019726,2]
[373328779,1752947472728,-500.0,0.00019726,2]
[373328780,1752947472738,-150.0,0.00019726,2]
[373328781,1752947472751,-443.0,0.00019726,2]
[373328782,1752947472761,-150.0,0.00019726,2]
[373328783,1752947472771,-555.52348752,0.00019726,2]
[373328784,1752947472782,-500.0,0.00019726,2]
[373328785,1752947472791,-183.17545915,0.00019726,2]
[373328786,1752947472801,-400.0,0.00019726,2]
[373328787,1752947472811,-3718.0,0.00019726,2]
[373328788,1752947472820,-150.0,0.00019726,2]
[373328789,1752947472829,-500.0,0.00019726,2]
[373328790,1752947472839,-1381.0,0.00019726,2]
[373328791,1752947472848,-150.0,0.00019726,2]
[373328792,1752947472858,-150.0,0.00019726,2]
[373328793,1752947472868,-351.57512069,0.00019726,2]
[373328794,1752947472878,-150.0,0.00019726,2]
[373328795,1752947472888,-150.0,0.00019726,2]
[373328796,1752947472897,-500.0,0.00019726,2]
[373328797,1752947472906,-150.0,0.00019726,2]
[373328798,1752947472916,-200.0,0.00019726,2]
[373328799,1752947472927,-1247.0,0.00019726,2]
[373328800,1752947472936,-450.0,0.00019726,2]
[373328801,1752947472949,-150.0,0.00019726,2]
[373328802,1752947472959,-150.0,0.00019726,2]
[373328803,1752947472969,-503.0,0.00019726,2]
[373328804,1752947472979,-151.0,0.00019726,2]
[373328805,1752947472989,-151.0,0.00019726,2]
[373328806,1752947472999,-480.0,0.00019726,2]
[373328807,1752947473009,-480.0,0.00019726,2]
[373328808,1752947473021,-480.0,0.00019726,2]
[373328809,1752947473031,-510.17,0.00019726,2]
[373328810,1752947473041,-480.0,0.00019726,2]
[373328811,1752947473051,-480.0,0.00019726,2]
[373328812,1752947473061,-480.0,0.00019726,2]
[373328813,1752947473070,-480.0,0.00019726,2]
[373328814,1752947473080,-480.0,0.00019726,2]
[373328815,1752947473090,-480.0,0.00019726,2]
[373328816,1752947473099,-480.0,0.00019726,2]
[373328817,1752947473109,-581.97,0.00019726,2]
[373328818,1752947473119,-480.0,0.00019726,2]
[373328819,1752947473129,-1032.82,0.00019726,2]
[373328820,1752947473140,-480.0,0.00019726,2]
[373328821,1752947473151,-229.26,0.00019726,2]
[373328822,1752947473161,-480.0,0.00019726,2]
[373328823,1752947473171,-480.0,0.00019726,2]
[373328824,1752947473181,-480.0,0.00019726,2]
[373328825,1752947473200,-329.55,0.00019726,2]
[373328826,1752947473212,-480.0,0.00019726,2]
[373328827,1752947473223,-151.0,0.00019726,2]
[373328828,1752947473233,-511.8,0.00019726,2]
[373328829,1752947473243,-480.0,0.00019726,2]
[373328830,1752947473254,-480.0,0.00019726,2]
[373328831,1752947473264,-480.0,0.00019726,2]
[373328832,1752947473275,-732.98,0.00019726,2]
[373328833,1752947473285,-480.0,0.00019726,2]
[373328834,1752947473296,-480.0,0.00019726,2]
[373328835,1752947473308,-480.0,0.00019726,2]
[373328836,1752947473318,-705.62,0.00019726,2]
[373328837,1752947473328,-480.0,0.00019726,2]
[373328838,1752947473340,-480.0,0.00019726,2]
[373328839,1752947473351,-437.25863053,0.00019726,2]
[373328840,1752947473361,-480.0,0.00019726,2]
[373328841,1752947473372,-480.0,0.00019726,2]
[373328842,1752947473382,-480.0,0.00019726,2]
[373328843,1752947473392,-480.0,0.00019726,2]
[373328844,1752947473402,-480.0,0.00019726,2]
[373328845,1752947473413,-480.0,0.00019726,2]
[373328846,1752947473423,-480.0,0.00019726,2]
[373328847,1752947473435,-480.0,0.00019726,2]
[373328848,1752947473445,-480.0,0.00019726,2]
[373328849,1752947473456,-480.0,0.00019726,2]
[373328850,1752947473466,-480.0,0.00019726,2]
[373328851,1752947473477,-480.0,0.00019726,2]
[373328852,1752947473488,-646.05,0.00019726,2]
[373328853,1752947473500,-480.0,0.00019726,2]
[373328854,1752947473510,-480.0,0.00019726,2]
[373328855,1752947473522,-480.0,0.00019726,2]
[373328856,1752947473533,-480.0,0.00019726,2]
[373328857,1752947473544,-480.0,0.00019726,2]
[373328858,1752947473555,-151.0,0.00019726,2]
[373328859,1752947473565,-1135.62,0.00019726,2]
[373328860,1752947473575,-151.0,0.00019726,2]
[373328861,1752947473586,-480.0,0.00019726,2]
[373328862,1752947473596,-513.46,0.00019726,2]
[373328863,1752947473606,-208.995214,0.00019726,2]
[373328864,1752947473616,-208.995214,0.00019726,2]
[373328865,1752947473627,-480.0,0.00019726,2]
[373328866,1752947473637,-480.0,0.00019726,2]
[373328867,1752947473649,-154.102125,0.00019726,2]
[373328868,1752947473659,-480.0,0.00019726,2]
[373328869,1752947473669,-591.11555642,0.00019726,2]
[373328870,1752947473680,-480.0,0.00019726,2]
[373328871,1752947473692,-255.37,0.00019726,2]
[373328872,1752947473703,-480.0,0.00019726,2]
[373328873,1752947473714,-384.19,0.00019726,2]
[373328874,1752947473725,-480.0,0.00019726,2]
[373328875,1752947473738,-428.29,0.00019726,2]
[373328876,1752947473751,-480.0,0.00019726,2]
[373328877,1752947473761,-480.0,0.00019726,2]
[373328878,1752947473771,-480.0,0.00019726,2]
[373328879,1752947473783,-480.0,0.00019726,2]
[373328880,1752947473793,-480.0,0.00019726,2]
[373328881,1752947473804,-266.819656,0.00019726,2]
[373328882,1752947473815,-480.0,0.00019726,2]
[373328883,1752947473826,-326.91,0.00019726,2]
[373328884,1752947473837,-266.819656,0.00019726,2]
[373328885,1752947473847,-512.86,0.00019726,2]
[373328886,1752947473858,-480.0,0.00019726,2]
[373328887,1752947473869,-461.53,0.00019726,2]
[373328888,1752947473879,-480.0,0.00019726,2]
[373328889,1752947473890,-480.0,0.00019726,2]
[373328890,1752947473902,-151.0,0.00019726,2]
[373328891,1752947473913,-480.0,0.00019726,2]
[373328892,1752947473923,-480.0,0.00019726,2]
[373328893,1752947473934,-480.0,0.00019726,2]
[373328894,1752947473949,-480.0,0.00019726,2]
[373328895,1752947473959,-480.0,0.00019726,2]
[373328896,1752947473970,-320.0,0.00019726,2]
[373328897,1752947473981,-480.0,0.00019726,2]